bitfinex-derivatives/quotes_SOLF0:USTF0_20250522
["timestamp","ask_amount","ask_price","bid_price","bid_amount"]
[1747920629594,0.04121084,178.44,178.41,118.62]
[1747920629786,0.04121084,178.44,178.41,126.2883]
[1747920630089,0.04121084,178.44,178.42,118.62]
[1747920630488,0.04121084,178.44,178.43,118.62]
[1747920632402,5.6023,178.49,178.43,118.62]
[1747920632584,5.6023,178.49,178.45,5.6033]
[1747920632895,5.6021,178.49,178.43,118.62]
[1747920633401,0.02090704,178.48,178.44,0.03728745]
[1747920633597,5.62330704,178.48,178.44,5.64078745]
[1747920633895,0.02090704,178.48,178.44,5.64078745]
[1747920634785,5.62330704,178.48,178.44,0.03728745]
[1747920634992,0.02090704,178.48,178.45,118.6]
[1747920635187,5.6027,178.47,178.45,118.6]
[1747920635386,0.02090704,178.48,178.45,118.6]
[1747920635687,5.6029,178.47,178.45,118.6]
[1747920635890,0.02090704,178.48,178.45,118.6]
[1747920636605,119.9557,178.61,178.45,118.6]
[1747920637103,119.9557,178.61,178.46,118.58]
[1747920637589,119.9557,178.61,178.52,0.03595965]
[1747920637994,5.6008,178.53,178.52,0.03595965]
[1747920643190,5.6005,178.54,178.52,0.03595965]
[1747920643500,119.9557,178.61,178.52,0.03595965]
[1747920644090,119.9557,178.61,178.52,5.63705965]
[1747920644298,118.58,178.61,178.52,0.03595965]
[1747920644500,118.58,178.61,178.52,1.92685965]
[1747920644701,118.58,178.61,178.52,3.80045965]
[1747920646503,128.98193166,178.65,178.52,3.80045965]
[1747920646704,118.54,178.65,178.57,0.03533875]
[1747920648207,6.91915152,178.68,178.57,0.03533875]
[1747920648407,6.91915152,178.68,178.61,0.03881192]
[1747920649102,5.5975,178.64,178.61,0.03881192]
[1747920649406,6.91915152,178.68,178.61,0.03881192]
[1747920649608,5.598,178.62,178.61,0.03881192]
[1747920653114,5.5978,178.63,178.61,0.03881192]
[1747920653311,0.7631,178.68,178.61,0.03881192]
[1747920653706,5.5967,178.66,178.61,0.03881192]
[1747920654015,126.26795152,178.75,178.61,0.03881192]
[1747920654216,127.03105152,178.75,178.66,0.03867393]
[1747920655017,5.5958,178.69,178.66,0.03867393]
[1747920655313,127.03105152,178.75,178.66,0.03867393]
[1747920655504,5.5957,178.7,178.66,0.03867393]
[1747920655817,127.03105152,178.75,178.66,0.03867393]
[1747920656713,5.5964,178.68,178.66,0.03867393]
[1747920657316,5.5959,178.69,178.66,0.03867393]
[1747920657619,127.03105152,178.75,178.66,0.03867393]
[1747920657819,5.5953,178.71,178.66,0.03867393]
[1747920658613,5.5949,178.72,178.66,0.03867393]
[1747920658815,119.4624,178.8,178.66,0.03867393]
[1747920659007,119.4624,178.8,178.71,0.04103724]
[1747920659209,5.5948,178.72,178.71,0.04103724]
[1747920659710,5.5948,178.72,178.71,3.724e-05]
[1747920664526,0.03577629,178.73,178.71,3.724e-05]
[1747920664725,0.03577629,178.73,178.71,5.59493724]
[1747920665327,0.03577629,178.73,178.72,5.5948]
[1747920666027,0.03577629,178.73,178.71,3.724e-05]
[1747920668929,5.5948,178.72,178.71,3.724e-05]
[1747920671429,0.03577629,178.73,178.71,3.724e-05]
[1747920671632,11.1798,178.88,178.71,3.724e-05]
[1747920671831,11.1798,178.88,178.75,5.5936]
[1747920672033,5.5924,178.8,178.75,118.64]
[1747920672330,11.1798,178.88,178.75,118.64]
[1747920672530,5.5918,178.82,178.8,0.04223967]
[1747920672733,118.64,178.89,178.8,0.04223967]
[1747920673124,5.592,178.81,178.8,0.04223967]
[1747920676129,5.592,178.81,178.75,118.64]
[1747920676130,118.62,178.83,178.71,118.62]
[1747920676335,0.6056,178.82,178.71,118.62]
[1747920676528,5.5945,178.73,178.71,118.62]
[1747920676728,0.6056,178.82,178.71,118.62]
[1747920676936,0.04274676,178.78,178.75,0.04291379]
[1747920677130,5.5936,178.76,178.75,0.04291379]
[1747920678727,5.5936,178.76,178.75,1.379e-05]
[1747920684446,0.04274676,178.78,178.75,1.379e-05]
[1747920684646,120.78,178.85,178.75,1.379e-05]
[1747920685046,5.592,178.81,178.75,1.379e-05]
[1747920685236,120.78,178.85,178.75,1.379e-05]
[1747920685537,0.04242757,178.82,178.75,1.379e-05]
[1747920685738,5.14991854,178.88,178.77,0.04296748]
[1747920685941,5.14991854,178.88,178.78,120.78]
[1747920686745,5.5913,178.84,178.81,0.03933898]
[1747920686947,5.14991854,178.88,178.81,0.03933898]
[1747920687449,5.591,178.85,178.81,5.63133898]
[1747920688150,5.14991854,178.88,178.81,0.03933898]
[1747920688352,120.78,178.89,178.81,0.03933898]
[1747920689053,604.22,178.93,178.81,0.03933898]
[1747920689254,5.59,178.88,178.85,0.04280998]
[1747920689848,604.22,178.93,178.85,0.04280998]
[1747920690452,5.5904,178.86,178.85,0.04280998]
[1747920692448,5.5917,178.82,178.77,120.74]
[1747920692659,5.5917,178.82,178.78,5.5927]
[1747920692955,5.5915,178.83,178.77,120.74]
[1747920693154,120.74,178.88,178.8,5.5922]
[1747920693351,0.04234191,178.86,178.82,0.04179867]
[1747920695157,5.5914,178.83,178.82,0.04179867]
[1747920698061,0.04234191,178.86,178.82,0.04179867]
[1747920698953,5.5914,178.83,178.82,0.04179867]
[1747920699762,0.04234191,178.86,178.82,0.04179867]
[1747920700060,5.5911,178.85,178.82,0.04179867]
[1747920700560,0.04234191,178.86,178.82,0.04179867]
[1747920700760,5.63294191,178.86,178.82,0.04179867]
[1747920700964,0.04234191,178.86,178.82,0.04179867]
[1747920701457,5.591,178.85,178.82,0.04179867]
[1747920701661,0.04234191,178.86,178.82,0.04179867]
[1747920701856,5.5914,178.83,178.82,0.04179867]
[1747920702360,5.5914,178.83,178.82,9.867e-05]
[1747920702683,126.32,178.83,178.73,1.9097]
[1747920702859,120.72,178.83,178.73,1.9097]
[1747920703460,0.03617124,178.8,178.76,0.04178569]
[1747920705761,0.03617124,178.8,178.77,5.593]
[1747920706158,0.03617124,178.8,178.76,0.04178569]
[1747920706358,0.03617124,178.8,178.79,5.5926]
[1747920706661,5.5918,178.82,178.79,5.5926]
[1747920706862,5.5916,178.83,178.8,5.5922]
[1747920707867,5.5918,178.82,178.8,0.04306253]
[1747920708158,0.04191476,178.83,178.8,0.04306253]
[1747920708361,120.72,178.88,178.8,0.04306253]
[1747920708570,5.5908,178.85,178.82,5.5914]
[1747920708959,120.72,178.88,178.81,2.0572]
[1747920709159,120.72,178.88,178.81,4.0858]
[1747920710264,120.72,178.88,178.81,2.0572]
[1747920710460,5.5917,178.82,178.81,2.0572]
[1747920710666,120.72,178.88,178.81,2.0572]
[1747920711068,5.5915,178.83,178.81,2.0572]
[1747920711373,120.72,178.88,178.81,2.0572]
[1747920711664,120.72,178.88,178.81,7.6491]
[1747920712166,5.5909,178.85,178.81,7.6491]
[1747920712369,120.72,178.88,178.81,7.6491]
[1747920712592,120.72,178.88,178.81,2.0572]
[1747920712767,5.5901,178.88,178.81,2.0572]
[1747920713173,5.5901,178.88,178.84,5.5908]
[1747920713361,5.5901,178.88,178.84,5.62940775]
[1747920713667,5.14991854,178.9,178.84,5.62940775]
[1747920714062,5.59,178.88,178.84,5.62940775]
[1747920714260,5.59,178.88,178.85,5.5907]
[1747920714868,5.5901,178.87,178.84,0.03860775]
[1747920715469,5.5898,178.88,178.84,0.03860775]
[1747920715669,120.72,178.92,178.84,0.03860775]
[1747920716667,5.5902,178.87,178.84,5.62950775]
[1747920716865,120.72,178.92,178.84,0.03860775]
[1747920717068,5.5903,178.87,178.84,5.62960775]
[1747920717265,120.72,178.92,178.84,0.03860775]
[1747920718268,5.5904,178.87,178.84,0.03860775]
[1747920718664,120.72,178.92,178.84,0.03860775]
[1747920718866,5.59,178.88,178.84,5.62950775]
[1747920719065,5.59,178.88,178.84,0.03860775]
[1747920719962,5.5896,178.89,178.84,0.03860775]
[1747920720172,120.72,178.92,178.84,0.03860775]
[1747920721068,120.72,178.92,178.84,5.62950775]
[1747920721469,120.72,178.92,178.84,0.03860775]
[1747920722273,120.72,178.92,178.84,5.62950775]
[1747920722472,120.72,178.92,178.84,0.03860775]
[1747920722670,5.5908,178.85,178.84,0.03860775]
[1747920723069,120.72,178.92,178.84,0.03860775]
[1747920723775,5.5901,178.88,178.84,5.62940775]
[1747920723975,120.72,178.92,178.84,5.62940775]
[1747920724176,120.72,178.92,178.84,0.03860775]
[1747920724974,5.5903,178.87,178.84,5.62960775]
[1747920725275,120.72,178.92,178.84,0.03860775]
[1747920725574,5.5908,178.85,178.84,0.03860775]
[1747920727477,125.86991854,178.92,178.84,0.03860775]
[1747920727873,5.5903,178.87,178.84,0.03860775]
[1747920728276,5.5903,178.87,178.84,5.62950775]
[1747920728677,125.86991854,178.92,178.84,0.03860775]
[1747920729376,5.14991854,178.91,178.84,5.62960775]
[1747920729679,5.59,178.88,178.84,5.62960775]
[1747920730078,5.14991854,178.91,178.84,0.03860775]
[1747920730379,5.5897,178.89,178.84,121.53860775]
[1747920730982,5.14991854,178.91,178.84,121.53860775]
[1747920731382,10.73891854,178.91,178.87,5.5899]
[1747920731774,5.14991854,178.91,178.84,121.53860775]
[1747920732082,5.14991854,178.91,178.88,5.5896]
[1747920732277,5.14991854,178.91,178.88,0.04274597]
[1747920732779,10.73901854,178.91,178.88,0.04274597]
[1747920733184,5.14991854,178.91,178.88,0.04274597]
[1747920733980,121.5,178.98,178.88,0.04274597]
[1747920733981,5.14991854,178.97,178.88,0.04274597]
[1747920734383,5.14991854,178.97,178.89,121.5]
[1747920734576,5.14991854,178.97,178.9,1.8777]
[1747920734882,10.73721854,178.97,178.92,0.03640473]
[1747920735278,5.14991854,178.97,178.94,5.5877]
[1747920735474,5.14991854,178.97,178.92,0.03640473]
[1747920735683,5.14991854,178.97,178.96,5.5873]
[1747920736284,6.91915152,178.99,178.94,121.48]
[1747920736783,10.44193166,179.02,179.01,5.5858]
[1747920736977,10.44193166,179.02,178.95,10.99444553]
[1747920736978,6.93499295,179.09,179.0,121.51646494]
[1747920737176,6.93499295,179.09,179.01,121.48]
[1747920738377,6.93499295,179.09,179.02,106.2]
[1747920738581,6.93499295,179.09,179.04,0.03942279]
[1747920740181,1.9539,179.19,179.04,0.03942279]
[1747920740379,1.9539,179.19,179.1,0.0377942]
[1747920741790,5.582,179.13,179.1,0.0377942]
[1747920742085,1.9539,179.19,179.1,0.0377942]
[1747920742282,121.46,179.2,179.1,0.0377942]
[1747920743082,5.5813,179.16,179.1,0.0377942]
[1747920743280,121.46,179.2,179.1,0.0377942]
[1747920744391,5.5808,179.17,179.1,0.0377942]
[1747920744588,121.46,179.2,179.1,0.0377942]
[1747920745981,5.5817,179.14,179.1,0.0377942]
[1747920746183,121.46,179.2,179.1,0.0377942]
[1747920747088,5.5821,179.13,179.1,0.0377942]
[1747920747287,121.46,179.2,179.1,0.0377942]
[1747920747785,121.46,179.2,179.1,5.6205942]
[1747920748091,121.46,179.2,179.1,0.0377942]
[1747920749289,17.27031491,179.19,179.1,0.0377942]
[1747920749488,17.27031491,179.19,179.02,124.58]
[1747920749687,11.161,179.18,179.02,124.58]
[1747920749886,5.5844,179.06,179.02,124.58]
[1747920750388,0.03604348,179.06,179.02,0.04126537]
[1747920750981,5.5851,179.03,179.02,0.04126537]
[1747920751479,0.03604348,179.06,179.02,0.04126537]
[1747920752594,0.03604348,179.06,179.02,5.62646537]
[1747920752987,0.03604348,179.06,179.02,0.04126537]
[1747920753195,0.03604348,179.06,179.02,124.62126537]
[1747920753595,0.03604348,179.06,179.05,5.5845]
[1747920753893,0.03604348,179.06,179.02,124.62126537]
[1747920754189,0.03604348,179.06,179.05,5.5845]
[1747920754395,3.8456,179.16,179.02,124.62126537]
[1747920754693,5.5834,179.09,179.06,5.584]
[1747920754885,3.8456,179.16,179.07,124.58]
[1747920755290,3.8456,179.16,179.04,124.58]
[1747920755593,3.8456,179.16,179.08,0.03658049]
[1747920755993,5.5833,179.09,179.08,0.03658049]
[1747920757196,5.5849,179.04,179.02,124.56]
[1747920757391,124.56,179.12,179.0,124.56]
[1747920757591,5.5846,179.05,179.0,124.56]
[1747920757796,5.5846,179.05,179.01,5.5858]
[1747920758099,0.04250116,179.05,179.01,5.62525312]
[1747920758294,0.04250116,179.05,179.02,5.5854]
[1747920758494,0.04250116,179.05,179.01,0.03945312]
[1747920758895,0.04250116,179.05,179.02,5.5852]
[1747920759195,0.04250116,179.05,179.01,0.03945312]
[1747920759690,5.62730116,179.05,179.01,0.03945312]
[1747920759996,5.62730116,179.05,179.01,5.62495312]
[1747920760298,5.62730116,179.05,179.01,0.03945312]
[1747920760499,0.04250116,179.05,179.01,0.03945312]
[1747920760894,0.04250116,179.05,179.01,2.07605312]
[1747920761900,0.04250116,179.05,179.02,5.5854]
[1747920762399,0.04250116,179.05,179.03,5.585]
[1747920762700,0.04250116,179.05,179.01,0.03945312]
[1747920762994,0.04250116,179.05,179.02,5.5852]
[1747920763200,5.62710116,179.05,179.02,5.5852]
[1747920763596,0.04250116,179.05,179.02,5.5852]
[1747920763788,0.04250116,179.05,179.03,5.585]
[1747920764700,5.62700116,179.05,179.02,5.5853]
[1747920765299,0.04250116,179.05,179.01,0.03945312]
[1747920765997,5.5851,179.04,179.01,5.62515312]
[1747920766197,0.04250116,179.05,179.01,0.03945312]
[1747920766402,5.5854,179.03,179.01,0.03945312]
[1747920766598,0.04250116,179.05,179.01,0.03945312]
[1747920767398,5.5851,179.04,179.01,0.03945312]
[1747920767900,5.5851,179.04,179.01,5.62515312]
[1747920768097,5.5852,179.03,179.01,0.03945312]
[1747920768299,0.04250116,179.05,179.01,0.03945312]
[1747920768600,5.62720116,179.05,179.01,5.62495312]
[1747920769002,5.62720116,179.05,179.01,0.03945312]
[1747920769195,0.04250116,179.05,179.02,5.5852]
[1747920769397,0.04250116,179.05,179.01,0.03945312]
[1747920769791,0.04250116,179.05,179.02,124.58]
[1747920769998,0.04250116,179.05,179.04,5.5848]
[1747920770299,0.04250116,179.05,179.02,124.58]
[1747920770501,0.04250116,179.05,179.01,124.61945312]
[1747920770905,5.5854,179.02,179.01,0.03945312]
[1747920771506,126.5603,179.04,178.9,126.5945]
[1747920772006,126.5603,179.04,178.93,5.5882]
[1747920772304,126.5603,179.04,178.9,126.5945]
[1747920772506,0.0426364,179.0,178.97,0.0383124]
[1747920772703,5.5867,178.98,178.97,0.0383124]
[1747920774208,1.9534,178.99,178.9,124.58]
[1747920774600,5.5883,178.94,178.9,124.58]
[1747920774807,126.5534,178.99,178.88,488.1896]
[1747920775108,5.5884,178.93,178.92,0.0365322]
[1747920775304,0.04289242,178.95,178.92,0.0365322]
[1747920775605,5.5883,178.93,178.92,0.0365322]
[1747920776013,0.04289242,178.95,178.92,0.0365322]
[1747920776903,5.63059242,178.95,178.92,0.0365322]
[1747920777303,0.04289242,178.95,178.92,0.0365322]
[1747920777504,0.04289242,178.95,178.92,124.7965322]
[1747920777704,0.04289242,178.95,178.94,5.5879]
[1747920779209,0.04289242,178.95,178.94,130.3479]
[1747920779409,0.04289242,178.95,178.94,124.76]
[1747920780012,0.04289242,178.95,178.92,0.0365322]
[1747920782911,5.5883,178.93,178.92,0.0365322]
[1747920783109,0.04289242,178.95,178.83,124.76]
[1747920783411,124.76,178.98,178.81,6.19179513]
[1747920783412,5.5908,178.85,178.81,6.19179513]
[1747920783620,124.78,178.87,178.81,6.19179513]
[1747920783918,5.5917,178.82,178.81,6.19179513]
[1747920784417,124.78,178.82,178.79,6.77664383]
[1747920784603,124.78,178.82,178.71,126.6508]
[1747920785012,124.78,178.82,178.73,18.07989618]
[1747920785309,124.78,178.86,178.76,0.04215071]
[1747920785507,124.78,178.86,178.77,5.5931]
[1747920785706,0.04248324,178.83,178.8,0.03975215]
[1747920786317,5.5921,178.81,178.8,0.03975215]
[1747920787308,0.04248324,178.83,178.8,0.03975215]
[1747920788014,5.592,178.81,178.8,0.03975215]
[1747920789415,0.04248324,178.83,178.8,0.03975215]
[1747920790911,5.5899,178.88,178.83,5.5911]
[1747920791213,124.84,178.94,178.81,126.8886]
[1747920791519,5.5901,178.88,178.82,106.24]
[1747920791916,131.70890992,178.95,178.81,2.0486]
[1747920792217,0.03994678,178.9,178.86,0.03778958]
[1747920792612,5.5904,178.87,178.86,0.03778958]
[1747920793522,5.5904,178.87,178.86,8.958e-05]
[1747920793716,17.27031491,178.89,178.77,2.0714]
[1747920794519,17.27031491,178.89,178.77,7.6644]
[1747920794723,0.0397385,178.85,178.81,0.04114998]
[1747920794917,5.5917,178.82,178.81,0.04114998]
[1747920796214,5.5917,178.82,178.72,124.86]
[1747920796215,5.593,178.78,178.72,124.86]
[1747920796416,124.86,178.85,178.72,124.86]
[1747920796720,5.5926,178.8,178.75,5.5937]
[1747920797020,483.16,178.9,178.71,3.9995]
[1747920797021,124.86,178.79,178.71,3.9995]
[1747920797214,124.86,178.78,178.62,128.7421]
[1747920797522,5.596,178.69,178.68,0.03769751]
[1747920799522,0.0414466,178.72,178.68,0.03769751]
[1747920801324,0.0414466,178.72,178.7,5.5954]
[1747920801515,0.0414466,178.72,178.68,0.03769751]
[1747920801825,124.92,178.82,178.68,106.33769751]
[1747920802022,124.92,178.82,178.68,108.376]
[1747920802225,124.92,178.82,178.72,5.5948]
[1747920802425,124.92,178.82,178.68,108.376]
[1747920802625,0.03728402,178.77,178.73,0.04155975]
[1747920803231,5.63078402,178.77,178.73,0.04155975]
[1747920803521,0.03728402,178.77,178.73,0.04155975]
[1747920803926,124.92,178.82,178.73,0.04155975]
[1747920804630,124.92,178.82,178.74,5.5939]
[1747920804827,124.92,178.82,178.73,0.04155975]
[1747920805026,0.03698138,178.79,178.73,0.04155975]
[1747920805235,0.03698138,178.79,178.75,5.5938]
[1747920805429,0.03698138,178.79,178.73,0.04155975]
[1747920806928,5.5942,178.74,178.73,0.04155975]
[1747920807131,0.03718465,178.75,178.73,0.04155975]
[1747920807428,0.03788724,178.76,178.72,0.03827742]
[1747920807829,0.03788724,178.76,178.72,1.94407742]
[1747920808029,127.34,178.82,178.72,1.94407742]
[1747920808224,127.34,178.82,178.72,108.24407742]
[1747920809122,0.03823555,178.79,178.74,5.5942]
[1747920809326,0.03823555,178.79,178.75,0.04218809]
[1747920809835,5.63113555,178.79,178.75,5.63578809]
[1747920810036,0.03823555,178.79,178.75,0.04218809]
[1747920811029,5.5932,178.78,178.75,0.04218809]
[1747920811334,0.03823555,178.79,178.75,0.04218809]
[1747920811631,5.5936,178.76,178.75,0.04218809]
[1747920812028,5.5936,178.76,178.75,8.809e-05]
[1747920812233,5.5959,178.69,178.67,1.8756]
[1747920812538,127.34,178.72,178.62,2.0381]
[1747920813040,27.88185235,178.76,178.6,7.624]
[1747920813329,0.0357712,178.7,178.66,0.03719095]
[1747920813537,5.5964,178.67,178.66,0.03719095]
[1747920813739,127.34,178.69,178.66,0.03719095]
[1747920814133,0.0357712,178.7,178.66,0.03719095]
[1747920814637,5.5964,178.68,178.66,0.03719095]
[1747920814837,0.0357712,178.7,178.66,0.03719095]
[1747920815135,5.596,178.69,178.66,0.03719095]
[1747920815441,0.0357712,178.7,178.66,0.03719095]
[1747920815731,5.5964,178.67,178.66,0.03719095]
[1747920818442,127.36,178.68,178.66,0.03719095]
[1747920818733,0.0357712,178.7,178.66,0.03719095]
[1747920819539,5.5964,178.67,178.66,0.03719095]
[1747920820442,5.5964,178.67,178.66,9.095e-05]
[1747920824137,27.88185235,178.66,178.51,127.4]
[1747920824342,27.88185235,178.66,178.51,129.2887]
[1747920824537,5.5997,178.57,178.51,129.2887]
[1747920824939,0.03729788,178.57,178.54,2.08358898]
[1747920825539,0.03729788,178.57,178.54,0.03668898]
[1747920826345,5.6001,178.55,178.54,0.03668898]
[1747920828142,5.6001,178.55,178.54,8.898e-05]
[1747920828644,133.0401,178.55,178.54,8.898e-05]
[1747920829543,0.03729788,178.57,178.54,8.898e-05]
[1747920830634,127.44,178.56,178.54,8.898e-05]
[1747920830941,5.6001,178.55,178.54,8.898e-05]
[1747920837851,127.44,178.56,178.42,5.7506]
[1747920838245,5.602,178.5,178.45,5.6032]
[1747920838450,128.1,178.51,178.42,5.7506]
[1747920838753,0.04098412,178.48,178.45,0.03964638]
[1747920840156,0.04098412,178.48,178.45,5.64284638]
[1747920840355,0.04098412,178.48,178.45,0.03964638]
[1747920840657,128.1,178.51,178.45,0.03964638]
[1747920841058,5.6019,178.5,178.46,5.6029]
[1747920841253,128.1,178.51,178.46,5.6029]
[1747920841757,0.04192694,178.5,178.45,0.03964638]
[1747920842460,5.603,178.46,178.45,4.638e-05]
[1747920842659,133.723,178.46,178.45,4.638e-05]
[1747920843047,5.6049,178.4,178.36,5.606]
[1747920843358,128.12,178.46,178.34,1.9425]
[1747920843559,5.6053,178.39,178.34,1.9425]
[1747920843858,128.12,178.46,178.34,1.9425]
[1747920844059,5.6047,178.41,178.38,0.03878241]
[1747920844251,128.17618695,178.42,178.38,0.03878241]
[1747920845158,5.6052,178.39,178.38,0.03878241]
[1747920845757,5.6052,178.39,178.38,8.241e-05]
[1747920847354,128.17618695,178.42,178.31,2.0028]
[1747920847658,128.14,178.42,178.31,2.0028]
[1747920847957,17.39281381,178.4,178.24,128.16]
[1747920848259,17.39281381,178.4,178.24,4.0679]
[1747920848468,5.6077,178.31,178.3,8.662e-05]
[1747920848654,133.7677,178.31,178.3,8.662e-05]
[1747920848857,5.6096,178.25,178.24,4.0679]
[1747920849156,128.2,178.26,178.14,4.63576426]
[1747920849361,5.6111,178.2,178.15,5.6126]
[1747920849553,128.2,178.23,178.14,4.63576426]
[1747920849749,0.03846403,178.2,178.17,0.03640141]
[1747920849957,5.6118,178.18,178.17,0.03640141]
[1747920850160,133.8118,178.18,178.17,0.03640141]
[1747920850363,5.6136,178.13,178.01,128.2]
[1747920850555,128.2,178.12,178.01,134.0431]
[1747920850956,5.614,178.11,178.01,134.0431]
[1747920851153,128.2,178.12,178.01,134.0431]
[1747920851358,0.03670153,178.08,178.05,5.65598009]
[1747920851552,0.03670153,178.08,178.05,0.04038009]
[1747920852460,5.6155,178.06,178.05,0.04038009]
[1747920852664,0.03670153,178.08,177.94,4.63012366]
[1747920852857,133.62,178.09,177.94,4.63012366]
[1747920853062,28.08309346,178.06,177.94,4.63012366]
[1747920853361,28.08309346,178.02,177.94,4.63012366]
[1747920853561,133.62,178.01,177.94,4.63012366]
[1747920853866,0.03553096,178.0,177.96,0.03707735]
[1747920854065,5.6184,177.98,177.96,0.03707735]
[1747920854261,0.03553096,178.0,177.96,0.03707735]
[1747920854667,133.62,178.03,177.96,0.03707735]
[1747920854865,133.62,178.03,177.94,4.63012366]
[1747920855065,133.62,178.08,177.93,106.56]
[1747920855758,0.0384242,178.02,177.99,0.04295722]
[1747920855963,133.62,178.08,177.99,0.04295722]
[1747920856367,5.616,178.05,177.99,5.66065722]
[1747920856567,133.62,178.08,177.99,0.04295722]
[1747920856969,0.04066247,178.05,177.99,0.04295722]
[1747920857169,133.62,178.08,177.99,0.04295722]
[1747920857361,625.62,178.12,177.99,0.04295722]
[1747920857664,625.62,178.12,177.98,1.9314]
[1747920857873,625.62,178.12,178.02,5.6165]
[1747920858072,625.62,178.12,177.98,1.9314]
[1747920858370,0.03970063,178.07,178.03,0.04267835]
[1747920858573,5.6162,178.04,178.03,7.835e-05]
[1747920858784,169.19351135,178.06,177.9,203.08]
[1747920859078,169.19351135,178.06,177.93,5.6197]
[1747920859280,169.19351135,178.06,177.91,2.0413]
[1747920859669,141.08,178.06,177.91,2.0413]
[1747920859878,0.04027341,178.0,177.97,0.0377399]
[1747920860073,0.0408071,178.0,177.97,0.03684401]
[1747920860791,141.08,178.02,177.97,0.03684401]
[1747920861382,28.11351135,178.11,177.97,0.03684401]
[1747920861678,5.6163,178.04,178.02,0.03849294]
[1747920862276,5.65719505,178.06,178.02,0.03849294]
[1747920862478,0.04139505,178.06,178.02,0.03849294]
[1747920862671,141.12,178.05,178.02,0.03849294]
[1747920862870,5.6165,178.03,178.02,0.03849294]
[1747920863172,141.12,178.05,178.02,0.03849294]
[1747920863973,141.12,178.05,177.93,7.5864]
[1747920864174,141.12,178.05,177.93,1.9668]
[1747920864982,0.04244333,178.01,177.97,0.03556605]
[1747920865182,141.14,178.0,177.97,0.03556605]
[1747920865578,5.6181,177.98,177.97,0.03556605]
[1747920865984,626.38,178.0,177.89,2.028]
[1747920866283,5.6204,177.91,177.89,2.028]
[1747920866488,141.14,177.93,177.89,2.028]
[1747920866680,141.14,177.93,177.85,1.8839]
[1747920867089,0.04096934,177.91,177.87,0.03930301]
[1747920869189,5.6211,177.89,177.87,0.03930301]
[1747920869485,141.18,177.88,177.87,0.03930301]
[1747920870488,141.18,177.88,177.87,5.66090301]
[1747920870787,0.04096934,177.91,177.87,0.03930301]
[1747920871792,0.04096934,177.91,177.82,2.028]
[1747920871986,28.15448069,177.91,177.77,4.0642]
[1747920872182,5.6229,177.83,177.77,9.6886]
[1747920872485,141.22,177.85,177.72,1.9232]
[1747920872686,141.22,177.84,177.72,3.9473]
[1747920872886,0.03691881,177.8,177.76,0.04067798]
[1747920873286,5.6247,177.77,177.76,0.04067798]
[1747920873485,141.26,177.79,177.65,2.0241]
[1747920873691,28.11351135,177.78,177.65,2.0241]
[1747920874185,28.11351135,177.74,177.64,2.0228]
[1747920874383,28.11351135,177.74,177.59,141.26]
[1747920874384,5.6285,177.65,177.59,141.26]
[1747920874574,141.26,177.73,177.59,141.26]
[1747920874775,0.04168857,177.68,177.64,0.03825432]
[1747920874978,152.56928857,177.68,177.64,0.03825432]
[1747920875187,146.94168857,177.68,177.64,0.03825432]
[1747920876588,0.04168857,177.68,177.64,0.03825432]
[1747920877287,0.04168857,177.68,177.65,5.6285]
[1747920877587,0.04168857,177.68,177.64,0.03825432]
[1747920877793,5.6279,177.67,177.64,0.03825432]
[1747920878190,0.04168857,177.68,177.64,0.03825432]
[1747920878389,5.6279,177.67,177.64,0.03825432]
[1747920879294,0.04168857,177.68,177.64,0.03825432]
[1747920879693,0.04168857,177.68,177.5,147.02]
[1747920879894,146.98,177.71,177.54,1.8843]
[1747920880596,0.03945972,177.64,177.61,0.04248544]
[1747920880793,5.6297,177.62,177.61,0.04248544]
[1747920881388,5.6317,177.55,177.54,1.8843]
[1747920881581,147.02,177.6,177.51,4.0698]
[1747920881784,147.02,177.6,177.51,2.0756]
[1747920882188,175.13351135,177.6,177.47,1.9942]
[1747920882589,5.6326,177.53,177.52,0.0430348]
[1747920882787,153.1,177.53,177.52,0.0430348]
[1747920882993,0.03878045,177.55,177.52,0.0430348]
[1747920883391,0.03878045,177.55,177.53,5.6321]